bitfinex-derivatives/quotes_ETHF0:USTF0_20250712
["timestamp","ask_amount","ask_price","bid_price","bid_amount"]
[1752297090048,0.8457,2948.8,2948.7,0.8229]
[1752297090249,2.46963,2948.8,2948.7,2.74524916]
[1752297090653,2.46963,2948.8,2948.7,3.64864916]
[1752297092354,2.46963,2948.8,2948.7,4.93014916]
[1752297093348,3.51213,2948.8,2948.7,3.0078]
[1752297094555,4.36449031,2948.8,2948.7,3.0078]
[1752297094950,3.32199031,2948.8,2948.7,3.0078]
[1752297095556,1.52363,2948.8,2948.7,3.0078]
[1752297095754,1.52363,2948.8,2948.6,24.24298]
[1752297095755,2.8342,2948.5,2948.4,0.00509243]
[1752297095959,5.38904511,2948.5,2948.4,0.00509243]
[1752297096454,4.36456031,2948.5,2948.4,0.00509243]
[1752297096658,3.50729,2947.7,2947.6,2.1849]
[1752297096959,0.67828,2947.3,2947.2,27.6692]
[1752297097158,1.52398,2947.3,2947.2,29.7736]
[1752297097361,1.52398,2947.3,2947.2,31.69594916]
[1752297101858,1.52398,2947.3,2947.2,29.7736]
[1752297104256,0.8457,2947.3,2947.2,30.4519]
[1752297105059,1.52398,2947.3,2947.2,30.4519]
[1752297106158,1.52398,2947.3,2947.2,29.7736]
[1752297106561,0.67844,2946.6,2946.5,3.2078]
[1752297106752,2.42591,2946.3,2946.2,4.0904]
[1752297107061,1.48231,2946.3,2946.2,6.2783]
[1752297107461,0.8038,2946.3,2946.2,6.95683]
[1752297108054,3.2078,2946.7,2946.6,3.0705]
[1752297108260,2.50828,2947.3,2947.2,0.8826]
[1752297108459,1.48208,2947.3,2947.2,3.7488]
[1752297108660,1.48208,2947.3,2947.2,3.0705]
[1752297109062,0.67826,2947.4,2947.3,3.0705]
[1752297109267,1.48206,2947.4,2947.3,3.0705]
[1752297109465,1.48206,2947.4,2947.3,4.99284916]
[1752297110364,0.8038,2947.4,2947.3,5.67112916]
[1752297110566,1.48206,2947.4,2947.3,4.99284916]
[1752297112366,1.48206,2947.4,2947.3,5.67112916]
[1752297112756,1.48206,2947.4,2947.3,4.99284916]
[1752297113367,3.45186,2947.4,2947.3,3.0705]
[1752297114062,0.8038,2947.0,2946.6,3.2078]
[1752297114262,1.48229,2946.4,2946.3,1.2784]
[1752297114457,3.45209,2946.4,2946.3,1.2784]
[1752297114657,1.48229,2946.4,2946.3,3.0705]
[1752297115270,3.45209,2946.4,2946.3,3.0705]
[1752297121969,2.42589,2946.4,2946.3,3.0705]
[1752297122359,3.45209,2946.4,2946.3,3.0705]
[1752297122560,1.48236,2946.1,2946.0,2.161]
[1752297122766,2.42596,2946.1,2946.0,2.161]
[1752297123072,1.4824,2945.9,2945.8,0.8826]
[1752297123267,3.4522,2945.9,2945.8,3.0705]
[1752297123473,0.67869,2945.5,2945.4,6.2783]
[1752297123670,0.67869,2945.5,2945.4,8.20064916]
[1752297126172,0.67869,2945.6,2945.5,0.67869]
[1752297126369,0.67869,2945.6,2945.5,3.74919]
[1752297126572,0.8038,2946.1,2946.0,0.8826]
[1752297126764,2.50437168,2946.1,2946.0,0.8826]
[1752297127062,1.48236,2946.1,2946.0,0.8826]
[1752297127368,1.48236,2946.1,2946.0,3.0705]
[1752297129579,3.45216,2946.1,2946.0,3.0705]
[1752297129784,3.45216,2946.1,2946.0,2.161]
[1752297130173,0.67867,2945.6,2945.5,26.6225]
[1752297130383,1.48247,2945.6,2945.5,28.54484916]
[1752297130678,1.48247,2945.6,2945.5,4.99284916]
[1752297132378,0.67867,2945.6,2945.5,4.99284916]
[1752297133379,1.48247,2945.6,2945.5,4.99284916]
[1752297134177,0.67867,2945.6,2945.5,4.99284916]
[1752297137882,0.67648631,2945.6,2945.5,4.99284916]
[1752297138479,1.69648,2946.0,2945.5,9.99284916]
[1752297138680,0.67865,2945.7,2945.6,5.4661]
[1752297138981,0.67865,2945.7,2945.6,6.2642]
[1752297139181,0.67865,2945.7,2945.6,8.18654916]
[1752297139480,0.67865,2945.7,2945.6,8.86521916]
[1752297140082,0.67865,2945.7,2945.6,8.18654916]
[1752297140581,0.67864,2945.8,2945.7,0.67864]
[1752297140781,0.67864,2945.8,2945.7,1.47674]
[1752297140980,0.67864,2945.8,2945.7,5.65738916]
[1752297141283,0.67864,2945.8,2945.7,4.97874916]
[1752297141581,0.67864,2945.8,2945.7,5.65739916]
[1752297142381,0.67864,2945.8,2945.7,4.97874916]
[1752297142978,0.67864,2945.8,2945.7,5.65739916]
[1752297143380,0.67864,2945.8,2945.7,4.97874916]
[1752297144384,0.67864,2945.8,2945.7,5.65739916]
[1752297147089,0.67864,2945.8,2945.7,4.97874916]
[1752297147692,0.67864,2945.8,2945.7,5.65739916]
[1752297149297,0.67864,2945.8,2945.7,4.97874916]
[1752297150996,0.8212,2946.2,2946.1,0.7981]
[1752297151297,1.49973,2946.2,2946.1,1.64980304]
[1752297151688,1.49973,2946.2,2946.1,3.90810304]
[1752297151892,0.9442,2946.5,2946.1,3.5721522]
[1752297152094,1.49966,2946.5,2946.4,2.94760304]
[1752297152293,2.52929209,2946.5,2946.4,2.94760304]
[1752297152693,2.52929209,2946.5,2946.4,3.0564]
[1752297153200,1.49966,2946.5,2946.4,3.0564]
[1752297153595,3.41406,2946.5,2946.4,3.0564]
[1752297154202,2.44386,2946.5,2946.4,3.0564]
[1752297154604,1.49966,2946.5,2946.4,3.0564]
[1752297158507,0.67846,2946.5,2946.4,6.2642]
[1752297159305,0.67846,2946.5,2946.4,7.11590304]
[1752297159503,0.67846,2946.5,2946.4,7.79439304]
[1752297159694,3.29556304,2946.5,2946.4,3.0564]
[1752297159900,1.49973,2946.2,2946.1,5.3037]
[1752297160203,1.49973,2946.2,2946.1,7.22604916]
[1752297160399,1.49973,2946.2,2946.1,8.18654916]
[1752297162806,1.49973,2946.2,2946.1,4.97874916]
[1752297164603,0.67853,2946.2,2946.1,4.97874916]
[1752297165901,1.47743,2946.2,2946.1,4.97874916]
[1752297166311,2.42103,2946.2,2946.1,4.97874916]
[1752297166604,2.42103,2946.2,2946.1,3.0564]
[1752297166605,3.35703,2946.2,2946.1,3.0564]
[1752297168103,2.42103,2946.2,2946.1,3.0564]
[1752297168303,1.47743,2946.2,2946.1,3.0564]
[1752297169014,0.67852,2946.3,2946.1,3.39898916]
[1752297169213,0.67852,2946.3,2946.2,3.81780304]
[1752297169414,0.67852,2946.3,2946.2,3.40179668]
[1752297169616,0.67852,2946.3,2946.2,4.36369668]
[1752297170710,0.67852,2946.3,2946.2,3.68516668]
[1752297170917,0.67852,2946.3,2946.2,2.9661]
[1752297171117,0.67852,2946.3,2946.2,3.64463]
[1752297171417,0.67852,2946.3,2946.2,2.9661]
[1752297171817,0.67852,2946.3,2946.2,3.64463]
[1752297172115,1.47742,2946.3,2946.2,2.9661]
[1752297172915,0.67852,2946.3,2946.2,2.9661]
[1752297173115,0.67852,2946.3,2946.2,3.64463]
[1752297173417,0.67852,2946.3,2946.2,2.9661]
[1752297173917,0.67852,2946.3,2946.2,3.64463]
[1752297174515,0.67852,2946.3,2946.2,2.9661]
[1752297174717,1.47742,2946.3,2946.2,2.9661]
[1752297175520,3.35702,2946.3,2946.2,2.9661]
[1752297176114,2.42106,2946.1,2946.0,6.85248]
[1752297176314,2.42106,2946.1,2946.0,6.1739]
[1752297176706,1.47746,2946.1,2946.0,6.85248]
[1752297177413,0.9436,2946.5,2946.0,4.3754]
[1752297177613,2.42096,2946.5,2946.4,2.9661]
[1752297177813,3.35696,2946.5,2946.4,2.9661]
[1752297178015,2.42096,2946.5,2946.4,2.9661]
[1752297178316,0.67846,2946.5,2946.4,3.64459]
[1752297178907,1.47734,2946.7,2946.6,1.51503]
[1752297179113,2.50688913,2946.7,2946.6,3.64453]
[1752297179410,1.47734,2946.7,2946.6,3.64453]
[1752297179814,1.47734,2946.7,2946.6,2.9661]
[1752297180811,1.47734,2946.7,2946.6,3.64454]
[1752297181919,0.6784,2946.8,2946.7,1.515]
[1752297182211,0.00509243,2946.9,2946.8,3.64449]
[1752297182416,1.03550328,2946.9,2946.8,3.64449]
[1752297182616,0.00509243,2946.9,2946.8,5.56683916]
[1752297183617,0.80399243,2946.9,2946.8,5.56683916]
[1752297184218,1.48236243,2946.9,2946.8,5.56683916]
[1752297184519,3.36196243,2946.9,2946.8,2.9661]
[1752297184720,1.47732,2946.7,2946.6,2.9661]
[1752297185821,1.47732,2946.7,2946.6,3.64454]
[1752297186718,0.7989,2946.7,2946.6,3.64454]
[1752297188424,1.47732,2946.7,2946.6,3.64454]
[1752297189324,1.47732,2946.7,2946.6,2.9661]
[1752297189823,1.47732,2946.7,2946.6,3.64454]
[1752297190625,1.47732,2946.7,2946.6,2.9661]
[1752297191027,1.47732,2946.7,2946.6,3.64454]
[1752297191226,1.47732,2946.7,2946.6,2.9661]
[1752297193125,1.47732,2946.7,2946.6,3.64454]
[1752297193318,1.47732,2946.7,2946.6,2.9661]
[1752297195229,1.47732,2946.7,2946.6,3.64454]
[1752297195432,1.47732,2946.7,2946.6,2.9661]
[1752297195926,0.67842,2946.7,2946.6,3.81780304]
[1752297196333,0.67842,2946.7,2946.6,4.49624304]
[1752297196539,1.45791,2946.8,2946.7,3.6142]
[1752297197527,0.67841,2946.8,2946.7,5.53654916]
[1752297198836,0.68348243,2946.9,2946.8,2.41509]
[1752297199033,0.68348243,2946.9,2946.8,5.53653916]
[1752297199237,0.00509243,2946.9,2946.8,6.3882422]
[1752297199834,0.68346243,2946.9,2946.8,6.3882422]
[1752297200034,0.00509243,2946.9,2946.8,6.3882422]
[1752297200536,0.00509243,2946.9,2946.8,9.5960422]
[1752297201037,0.00509243,2946.9,2946.8,5.3202]
[1752297201038,3.30036243,2946.9,2946.8,5.3202]
[1752297201334,0.00509243,2946.9,2946.8,5.53653916]
[1752297204328,0.00509243,2946.9,2946.8,3.61419]
[1752297204528,0.00509243,2946.9,2946.8,5.53653916]
[1752297207838,0.7795,2947.4,2947.3,0.8234]
[1752297208041,0.7795,2947.4,2947.3,3.78750304]
[1752297208840,1.45776,2947.4,2947.3,4.46578304]
[1752297210646,2.40116,2947.4,2947.3,2.9358]
[1752297210849,3.27796,2947.4,2947.3,2.1124]
[1752297212041,3.27796,2947.4,2947.3,1.1991]
[1752297212243,1.45783,2947.1,2947.0,4.4069]
[1752297212439,3.27803,2947.1,2947.0,2.1124]
[1752297212644,3.27803,2947.1,2947.0,2.9358]
[1752297215542,1.45783,2947.1,2947.0,2.9358]
[1752297216247,2.40123,2947.1,2947.0,2.9358]
[1752297217347,3.27803,2947.1,2947.0,2.9358]
[1752297217554,3.27803,2947.1,2947.0,2.1124]
[1752297218053,3.27803,2947.1,2947.0,2.9358]
[1752297220248,3.27803,2947.1,2947.0,2.1124]
[1752297220552,3.27807,2946.9,2946.8,2.1124]
[1752297221153,3.27807,2946.9,2946.8,2.9358]
[1752297223653,1.45787,2946.9,2946.8,3.61419]
[1752297224560,0.7795,2946.9,2946.8,3.61419]
[1752297224854,0.67834,2947.1,2947.0,0.67835]
[1752297225060,0.67834,2947.1,2947.0,4.36225304]
[1752297226556,0.00509243,2947.3,2947.0,3.68390304]
[1752297226760,1.47472,2947.2,2947.1,3.53042]
[1752297229860,0.7964,2947.2,2947.1,3.53042]
[1752297230054,0.00509243,2947.3,2947.2,3.5304]
[1752297230259,0.00509243,2947.3,2947.2,4.38210304]
[1752297231559,0.00509243,2947.3,2947.2,6.3044522]
[1752297235762,0.851,2947.9,2947.8,0.67815]
[1752297235763,0.7964,2947.9,2947.8,0.67815]
[1752297235962,0.7964,2947.9,2947.8,2.31545304]
[1752297236169,0.7964,2947.9,2947.8,4.2378022]
[1752297236461,0.7964,2947.9,2947.8,5.45259916]
[1752297237165,1.47454,2947.9,2947.8,5.45259916]
[1752297237366,0.7964,2947.9,2947.8,5.45259916]
[1752297238165,1.47451,2948.1,2948.0,2.8521]
[1752297239064,1.47451,2948.1,2948.0,3.53022]
[1752297239367,1.47451,2948.1,2948.0,2.8521]
[1752297239565,2.41751,2948.1,2948.0,2.8521]
[1752297239765,3.26851,2948.1,2948.0,2.8521]
[1752297241970,2.41751,2948.1,2948.0,2.8521]
[1752297242170,1.47451,2948.1,2948.0,3.53022]
[1752297242370,1.47451,2948.1,2948.0,2.8521]
[1752297243063,1.47439,2948.6,2948.5,1.4636]
[1752297243262,0.851,2948.9,2948.8,0.67793]
[1752297243465,3.2078,2949.1,2948.8,0.7856]
[1752297243669,4.68208,2949.1,2949.0,2.8521]
[1752297243862,4.0042,2949.1,2949.0,3.52999]
[1752297244262,0.851,2949.4,2949.3,2.8521]
[1752297244263,1.47421,2949.4,2949.3,2.8521]
[1752297246066,0.7964,2949.6,2949.5,1.7188]
[1752297246267,2.41715,2949.6,2949.5,2.8521]
[1752297246664,1.7394,2949.6,2949.5,2.8521]
[1752297247063,2.41715,2949.6,2949.5,2.8521]
[1752297247469,3.26815,2949.6,2949.5,2.8521]
[1752297255976,0.6778,2949.4,2949.3,0.9052]
[1752297256177,3.97610304,2949.4,2949.3,2.7961]
[1752297256481,3.97610304,2949.4,2949.3,2.0352]
[1752297256673,0.732,2949.1,2948.8,3.2078]
[1752297256983,1.40996,2948.7,2948.6,1.89599243]
[1752297257280,1.40996,2948.7,2948.6,4.72354159]
[1752297257573,1.40996,2948.7,2948.6,2.80119243]
[1752297257780,3.12456,2948.7,2948.6,0.00509243]
[1752297258375,3.12456,2948.7,2948.6,1.13509243]
[1752297258674,3.12456,2948.7,2948.6,2.80119243]
[1752297258675,2.31596,2948.7,2948.6,2.80119243]
[1752297259075,1.40996,2948.7,2948.6,2.80119243]
[1752297259276,2.31596,2948.7,2948.6,2.80119243]
[1752297259476,3.12456,2948.7,2948.6,2.80119243]
[1752297259781,3.12456,2948.7,2948.6,0.00509243]
[1752297261884,3.12456,2948.7,2948.6,2.80119243]
[1752297262582,2.31596,2948.7,2948.6,2.80119243]
[1752297264076,3.12456,2948.7,2948.6,2.80119243]
[1752297264274,2.31596,2948.7,2948.6,2.80119243]
[1752297265477,3.12456,2948.7,2948.6,1.13509243]
[1752297265680,3.12456,2948.7,2948.6,0.00509243]
[1752297267486,3.12456,2948.7,2948.6,1.13509243]
[1752297267784,3.12456,2948.7,2948.6,2.04029243]
[1752297268783,3.12456,2948.7,2948.6,0.00509243]
[1752297269588,3.12456,2948.7,2948.6,1.13509243]
[1752297269788,3.12456,2948.7,2948.6,2.04029243]
[1752297271190,3.12456,2948.7,2948.6,0.00509243]
[1752297271387,3.12456,2948.7,2948.6,1.13509243]
[1752297271887,3.12456,2948.7,2948.6,0.00509243]
[1752297272388,0.67812,2948.0,2947.9,3.9687]
[1752297272588,0.67812,2948.0,2947.9,5.89104916]
[1752297272888,0.67812,2948.0,2947.9,7.92624916]
[1752297274191,0.67812,2948.0,2947.9,8.60438916]
[1752297274688,0.67812,2948.0,2947.9,7.92624916]
[1752297277283,0.67812,2948.0,2947.9,8.60438916]
[1752297277488,0.67812,2948.0,2947.9,7.92624916]
[1752297278987,0.67812,2948.0,2947.9,8.60438916]
[1752297279784,0.67811,2948.1,2948.0,0.6781]
[1752297279989,0.67811,2948.1,2948.0,3.4742]
[1752297280192,0.67811,2948.1,2948.0,5.39654916]
[1752297280390,0.67811,2948.1,2948.0,6.2482522]
[1752297281391,1.41011,2948.1,2948.0,5.5701522]
[1752297282489,1.41011,2948.1,2948.0,6.2482722]
[1752297282889,1.41011,2948.1,2948.0,5.5701522]
[1752297283090,1.41011,2948.1,2948.0,4.71844916]
[1752297283988,1.41011,2948.1,2948.0,5.39656916]
[1752297284691,1.41011,2948.1,2948.0,4.71844916]
[1752297284892,1.41011,2948.1,2948.0,5.39656916]
[1752297285492,1.41011,2948.1,2948.0,4.71844916]
[1752297285693,1.41011,2948.1,2948.0,5.39656916]
[1752297286894,0.67811,2948.1,2948.0,5.39656916]
[1752297288398,1.40781,2948.1,2948.0,5.39656916]
[1752297289097,1.40781,2948.1,2948.0,4.71844916]
[1752297290403,2.33921,2948.1,2948.0,2.7961]
[1752297290598,3.10611,2948.1,2948.0,2.7961]
[1752297291299,2.33921,2948.1,2948.0,2.7961]
[1752297293101,2.33921,2948.1,2948.0,4.71844916]
[1752297293401,2.33921,2948.1,2948.0,2.7961]
[1752297295603,3.10611,2948.1,2948.0,2.7961]
[1752297295807,3.10614,2947.9,2947.8,6.0561]
[1752297296499,2.33924,2947.9,2947.8,6.0561]
[1752297296902,1.40784,2947.9,2947.8,6.0561]
[1752297297105,2.33924,2947.9,2947.8,6.0561]
[1752297299210,2.33924,2947.9,2947.8,5.1554]
[1752297299511,3.10614,2947.9,2947.8,1.1865]
[1752297299706,3.10614,2947.9,2947.8,2.8483]
[1752297300304,2.33924,2947.9,2947.8,2.8483]
[1752297300508,1.40784,2947.9,2947.8,2.8483]
[1752297300910,2.33924,2947.9,2947.8,2.8483]
[1752297301312,3.10614,2947.9,2947.8,2.8483]
[1752297302206,3.10616,2947.8,2947.7,2.09229243]
[1752297302412,3.10616,2947.8,2947.7,2.85339243]
[1752297302714,3.10616,2947.8,2947.7,1.19159243]
[1752297302909,3.10616,2947.8,2947.7,0.00509243]
[1752297304212,0.67828,2947.3,2947.2,6.0561]
[1752297304415,2.33938,2947.3,2947.2,6.0561]
[1752297305408,0.9314,2947.6,2947.2,6.90780304]
[1752297305718,2.33926,2947.8,2947.7,2.8483]
[1752297306217,3.10616,2947.8,2947.7,2.8483]
[1752297307214,3.10621,2947.6,2947.5,2.0872]
[1752297307612,1.40791,2947.6,2947.5,2.8483]
[1752297308110,3.10621,2947.6,2947.5,2.8483]
[1752297309511,1.40791,2947.6,2947.5,2.8483]
[1752297309717,1.40791,2947.6,2947.5,5.6223522]
[1752297310015,0.67821,2947.6,2947.5,5.6223522]
[1752297310220,1.40782,2948.0,2947.9,2.8483]
[1752297310515,1.40782,2948.0,2947.9,4.77064916]
[1752297311417,4.61562,2948.0,2947.9,4.77064916]
[1752297311612,4.61562,2948.0,2947.6,2.8483]
[1752297311613,0.7297,2947.7,2947.6,2.8483]
[1752297311922,1.40789,2947.7,2947.6,2.8483]
[1752297312712,2.33929,2947.7,2947.6,2.8483]
[1752297314422,3.06519,2947.7,2947.6,1.1865]
[1752297315118,3.06519,2947.7,2947.6,2.0872]
[1752297315317,3.06519,2947.7,2947.6,2.7971]
[1752297315713,6.27299,2947.7,2947.6,2.0872]
[1752297315912,1.45348,2947.3,2947.2,5.0656]
[1752297316214,1.45348,2947.3,2947.2,6.98794916]
[1752297316414,1.45348,2947.3,2947.2,7.98174916]
[1752297316923,0.67828,2947.3,2947.2,7.98174916]
[1752297317317,0.67828,2947.3,2947.2,8.8334522]
[1752297318914,1.45348,2947.3,2947.2,2.8516]
[1752297319219,2.36388,2947.3,2947.2,2.8516]
[1752297319817,1.45348,2947.3,2947.2,2.8516]
[1752297320916,0.67828,2947.3,2947.2,2.8516]
[1752297322523,1.45348,2947.3,2947.2,2.8516]
[1752297324718,2.36388,2947.3,2947.2,2.8516]
[1752297324917,0.9104,2947.2,2947.0,0.00509243]
[1752297325215,3.51083,2947.1,2947.0,2.43e-06]
[1752297325419,3.51083,2947.1,2946.6,0.9938]
[1752297325420,1.45362,2946.7,2946.6,0.9938]
[1752297325625,3.51092,2946.7,2946.6,0.9938]
[1752297326422,3.51092,2946.7,2946.6,1.7037]
[1752297327028,3.51092,2946.7,2946.6,2.8516]
[1752297327432,3.51092,2946.7,2946.6,0.9938]
[1752297328129,3.51092,2946.7,2946.6,2.1417]
[1752297328319,3.51092,2946.7,2946.6,2.8516]
[1752297329417,1.69614,2946.6,2946.2,0.7099]
[1752297329624,2.60061,2946.3,2946.2,4.77394916]
[1752297331525,2.60061,2946.3,2946.2,2.8516]
[1752297331526,3.51101,2946.3,2946.2,2.8516]
[1752297331731,0.7752,2946.0,2945.9,1.8578]
[1752297332030,2.60068,2946.0,2945.9,3.78014916]
[1752297332221,2.60068,2946.0,2945.9,1.8578]
[1752297332424,2.60068,2946.0,2945.9,2.8516]
[1752297332619,0.7752,2945.7,2945.6,0.7099]
[1752297332823,0.67862,2945.8,2945.7,1.1479]
[1752297333022,0.67865,2945.7,2945.6,7.8396522]
[1752297333427,0.67865,2945.7,2945.6,8.8334522]
[1752297333626,0.67865,2945.7,2945.6,9.5121222]
[1752297333827,0.67865,2945.7,2945.6,8.8334522]
[1752297334023,0.67863,2945.8,2945.7,0.9938]
[1752297334231,0.00509243,2946.0,2945.9,2.5364]
[1752297334433,0.00509243,2946.0,2945.9,4.38190304]
[1752297334729,0.00509243,2946.0,2945.9,6.3042522]
[1752297335230,0.00509243,2946.0,2945.9,11.3042522]
[1752297335527,0.00509243,2946.0,2945.9,6.3042522]
[1752297336434,5.80836,2946.5,2946.4,0.7099]
[1752297336633,4.66146,2946.5,2946.4,2.8516]
[1752297336834,5.80836,2946.5,2946.4,2.8516]
[1752297337026,4.66146,2946.5,2946.4,2.8516]
[1752297337232,3.983,2946.5,2946.4,3.53009]
[1752297337624,1.9221,2946.9,2946.8,0.7099]
[1752297337831,1.45357,2946.9,2946.8,2.8516]
[1752297338333,1.45357,2946.9,2946.8,4.77394916]
[1752297339124,2.60047,2946.9,2946.8,4.77394916]
[1752297339635,1.45357,2946.9,2946.8,4.77394916]
[1752297339834,1.45357,2946.9,2946.8,5.45233916]
[1752297340932,0.7752,2946.9,2946.8,5.45233916]
[1752297341334,1.45357,2946.9,2946.8,4.77394916]
[1752297341635,0.7752,2946.9,2946.8,5.45233916]
[1752297341936,1.1469,2947.1,2947.0,1.7037]
[1752297341937,2.60553243,2947.1,2947.0,1.7037]
[1752297342236,2.60553243,2947.1,2947.0,2.8516]
[1752297343033,2.60553243,2947.1,2947.0,3.52995]
[1752297343331,0.78029243,2947.1,2947.0,3.52995]
[1752297343537,0.00509243,2947.1,2947.0,6.3040022]
[1752297344641,3.9632,2947.7,2947.6,2.8954]
[1752297344835,4.64139,2947.7,2947.6,3.74710304]
[1752297345036,4.64139,2947.7,2947.6,2.8954]
[1752297345236,2.48909,2947.7,2947.6,2.8954]
[1752297347038,5.2109,2948.3,2947.7,2.0722]
[1752297347239,6.64435,2948.3,2948.2,2.8247]
[1752297347540,7.65821968,2948.3,2948.2,2.8247]
[1752297348245,6.64435,2948.3,2948.2,2.8247]
[1752297350038,3.43655,2948.3,2948.2,2.8247]
[1752297351644,2.48895,2948.3,2948.2,2.8247]
[1752297351846,3.43655,2948.3,2948.2,2.8247]
[1752297353143,2.48895,2948.3,2948.2,2.8247]
[1752297353739,3.43655,2948.3,2948.2,2.8247]
[1752297354445,2.48895,2948.3,2948.2,2.8247]
[1752297355147,0.67798,2948.6,2948.5,2.8247]
[1752297355344,0.67798,2948.6,2948.5,6.88420304]
[1752297355645,0.67798,2948.6,2948.5,8.8065522]
[1752297355841,5.95807,2949.0,2948.6,2.75016]
[1752297355842,3.2078,2949.0,2948.6,2.75016]
[1752297356035,4.64109,2949.0,2948.9,2.8247]
[1752297356442,3.2078,2949.3,2948.9,2.67484916]
[1752297356645,3.9632,2949.3,2949.2,2.8247]
[1752297356845,6.64412,2949.3,2949.2,2.8247]
[1752297357343,6.64412,2949.3,2949.2,1.6756]
[1752297357543,1.43327,2949.1,2949.0,2.8247]
[1752297357743,3.43637,2949.1,2949.0,2.8247]
[1752297357937,2.48877,2949.1,2949.0,2.8247]
[1752297358335,3.43637,2949.1,2949.0,2.8247]
[1752297358536,2.48877,2949.1,2949.0,2.8247]
[1752297359340,1.43327,2949.1,2949.0,2.8247]
[1752297360448,1.43327,2949.1,2949.0,3.67640304]
[1752297360947,1.43327,2949.1,2949.0,2.8247]
[1752297361250,2.48877,2949.1,2949.0,2.8247]
[1752297362043,1.43338,2948.6,2948.5,4.8834]
[1752297362249,1.43338,2948.6,2948.5,6.80574916]
[1752297362645,1.43338,2948.6,2948.5,4.74704916]
[1752297362952,2.48888,2948.6,2948.5,4.74704916]
[1752297363454,3.43648,2948.6,2948.5,0.9231]
[1752297363653,3.43648,2948.6,2948.5,1.6756]
[1752297363953,3.43648,2948.6,2948.5,2.8247]
[1752297364847,2.48888,2948.6,2948.5,2.8247]
[1752297365352,3.43648,2948.6,2948.5,2.8247]
[1752297366451,2.48888,2948.6,2948.5,2.8247]
[1752297367755,0.67798,2948.6,2948.5,4.74704916]
[1752297372056,1.43338,2948.6,2948.5,4.74704916]
[1752297376065,2.52038,2948.6,2948.5,4.74704916]
[1752297376460,2.52038,2948.6,2948.5,2.8247]
[1752297376663,3.42778,2948.6,2948.5,2.8247]
[1752297376957,3.42778,2948.6,2948.5,0.9231]
[1752297377764,3.42778,2948.6,2948.5,2.029]
[1752297377961,3.42778,2948.6,2948.5,2.7441]
[1752297379560,0.67798,2948.6,2948.5,4.66644916]
[1752297379765,0.67798,2948.6,2948.5,5.5181522]
[1752297381765,0.67798,2948.6,2948.5,4.66644916]
[1752297382070,1.37028,2948.6,2948.5,4.66644916]
[1752297382765,2.45728,2948.6,2948.5,4.66644916]
[1752297382965,1.37028,2948.6,2948.5,4.66644916]
[1752297384364,0.67797,2948.7,2948.6,2.7798]
[1752297384667,1.69818705,2948.7,2948.6,2.7798]
[1752297384866,1.69818705,2948.7,2948.6,5.38012916]
[1752297385362,1.02021705,2948.7,2948.6,5.38012916]
[1752297385568,1.69817705,2948.7,2948.6,5.38012916]
[1752297386469,1.69817705,2948.7,2948.6,4.70214916]
[1752297386866,1.69817705,2948.7,2948.6,5.38012916]
[1752297388059,1.02021705,2948.7,2948.6,5.38012916]
[1752297388262,0.67789,2949.0,2948.9,0.67791]
[1752297388467,1.69796927,2949.1,2949.0,2.35179]
[1752297388667,1.69796931,2949.1,2949.0,2.35179]
[1752297388868,0.67787,2949.1,2949.0,5.38003916]
[1752297389063,3.2078,2949.2,2949.1,1.39297]
[1752297389265,3.88564,2949.2,2949.1,3.63150304]
[1752297389566,3.88564,2949.2,2949.1,5.5538522]
[1752297390670,3.88564,2949.2,2949.1,6.2317222]
[1752297390866,0.67784,2949.2,2949.1,5.5538522]
[1752297391065,0.67784,2949.2,2949.1,4.70214916]
[1752297393574,1.37014,2949.2,2949.1,4.70214916]
[1752297395569,2.45714,2949.2,2949.1,4.70214916]
[1752297396273,3.36454,2949.2,2949.1,0.9588]
[1752297396473,1.37019,2949.0,2948.9,2.7798]
[1752297396767,2.45719,2949.0,2948.9,2.7798]
[1752297398676,1.37019,2949.0,2948.9,2.7798]
[1752297398875,0.67789,2949.0,2948.9,6.2317622]
[1752297399075,1.087,2949.4,2948.9,4.1670622]
[1752297399277,1.70362341,2949.3,2949.2,2.7798]
[1752297399477,1.37012,2949.3,2949.2,2.7798]
[1752297400477,2.45712,2949.3,2949.2,2.7798]
[1752297401978,1.37012,2949.3,2949.2,2.7798]
[1752297402573,1.37012,2949.3,2949.2,3.45764]
[1752297402774,1.37012,2949.3,2949.2,2.7798]
[1752297402980,1.37012,2949.3,2949.2,3.45764]
[1752297403178,0.6778,2949.4,2949.3,1.39292]
[1752297403379,0.6778,2949.4,2949.3,4.27852304]
[1752297403674,1.58515,2949.7,2949.3,3.60070304]
[1752297403878,0.6923,2949.7,2949.6,3.42675]
[1752297404079,1.42298,2949.9,2949.8,1.661]
[1752297404287,4.63075,2950.1,2950.0,1.661]
[1752297404489,4.63075,2950.1,2950.0,2.7361]
[1752297405286,3.2078,2950.1,2950.0,3.41376]
[1752297405478,3.88544,2950.1,2950.0,2.7361]
[1752297405785,1.42294,2950.1,2950.0,2.7361]
[1752297406180,0.67763,2950.2,2950.0,5.33610916]
[1752297406377,1.42293,2950.2,2950.1,2.7685]
[1752297406581,2.46903,2950.2,2950.1,2.7685]
[1752297406980,3.39753,2950.2,2950.1,2.7685]
[1752297408481,2.46903,2950.2,2950.1,2.7685]
[1752297410783,1.42293,2950.2,2950.1,2.7685]
[1752297410989,2.46903,2950.2,2950.1,2.7685]
[1752297411190,1.42293,2950.2,2950.1,2.7685]
[1752297411986,0.67754,2950.5,2950.4,0.67756]
[1752297412188,3.9531,2950.7,2950.6,1.6934]
[1752297412392,4.6306,2950.7,2950.6,2.7685]
[1752297412783,3.2078,2950.7,2950.6,4.69084916]
[1752297412984,3.8853,2950.7,2950.6,4.69084916]
[1752297413186,4.6306,2950.7,2950.6,4.69084916]
[1752297413387,5.6767,2950.7,2950.6,4.69084916]
[1752297414089,6.6052,2950.7,2950.6,2.7685]